bitfinex/quotes_SOLUSD_20260306
["timestamp","ask_amount","ask_price","bid_price","bid_amount"]
[1772829984349,0.48555393,84.952,84.913,0.45107214]
[1772829984663,11.7713285,84.953,84.913,0.45107214]
[1772829986552,4.35318559,84.97,84.915,0.45107214]
[1772829986553,0.48555393,84.956,84.915,0.45107214]
[1772829988864,0.48555393,84.968,84.917,0.45107214]
[1772829989060,0.48555393,84.959,84.917,0.45107214]
[1772829991451,0.48555393,84.957,84.919,0.45107214]
[1772829993774,0.47200079,84.955,84.919,0.45107214]
[1772829995080,0.47200079,84.949,84.907,0.45830112]
[1772829995378,0.47200079,84.939,84.901,12.23664295]
[1772829995672,0.47200079,84.939,84.901,11.77834183]
[1772829995878,0.47200079,84.937,84.89,0.45830112]
[1772829996065,0.47200079,84.937,84.893,0.45830112]
[1772829996380,0.47200079,84.928,84.889,0.45830112]
[1772829996582,0.47200079,84.928,84.89,0.45830112]
[1772829997574,0.47200079,84.928,84.892,0.45830112]
[1772829997765,0.47200079,84.937,84.892,0.45830112]
[1772829997950,0.47200079,84.937,84.894,0.45830112]
[1772829997951,11.77357068,84.936,84.894,0.45830112]
[1772829998156,11.77357068,84.936,84.896,0.45830112]
[1772829998352,11.77357068,84.936,84.902,0.45830112]
[1772829999278,11.77307547,84.94,84.902,0.45830112]
[1772829999473,0.47200079,84.942,84.902,0.45830112]
[1772829999683,0.47200079,84.968,84.912,0.45830112]
[1772830000757,0.47200079,84.966,84.913,11.77675974]
[1772830000954,0.47200079,84.966,84.914,0.45830112]
[1772830001970,0.47200079,84.966,84.896,3.69383402]
[1772830001971,0.47200079,84.949,84.901,0.45830112]
[1772830002872,0.47200079,84.947,84.903,0.45830112]
[1772830005173,0.47200079,84.945,84.905,0.45830112]
[1772830007793,0.47200079,84.943,84.907,0.45830112]
[1772830009501,0.47200079,84.943,84.901,29.44586373]
[1772830009502,0.47200079,84.939,84.9,0.45830112]
[1772830009695,0.47200079,84.939,84.899,0.45830112]
[1772830009877,0.47200079,84.937,84.899,0.45830112]
[1772830010397,0.47200079,84.919,84.885,0.45830112]
[1772830010597,0.47200079,84.919,84.88,11.98127878]
[1772830010902,0.47200079,84.919,84.88,0.2]
[1772830011201,0.47200079,84.919,84.884,0.45830112]
[1772830011603,0.47200079,84.919,84.89,0.45830112]
[1772830011806,29.42714636,84.956,84.892,0.45830112]
[1772830011982,29.42714636,84.956,84.894,0.45830112]
[1772830012182,29.42714636,84.956,84.902,0.45830112]
[1772830012502,4.35318559,84.95,84.902,0.45830112]
[1772830012880,29.42714636,84.956,84.902,0.45830112]
[1772830013116,29.42714636,84.956,84.893,0.14216157]
[1772830013117,29.42714636,84.956,84.904,0.45830112]
[1772830014010,0.43881253,84.955,84.906,0.45830112]
[1772830014191,0.43881253,84.955,84.912,0.45830112]
[1772830014396,11.77038336,84.959,84.912,0.45830112]
[1772830015406,11.77038336,84.959,84.914,0.45830112]
[1772830016806,11.77038336,84.959,84.92,0.14216157]
[1772830017000,11.77038336,84.959,84.921,0.49068604]
[1772830017887,11.77038336,84.959,84.923,0.49068604]
[1772830018106,0.43881253,84.958,84.923,0.49068604]
[1772830018605,0.43881253,84.958,84.918,11.77604707]
[1772830018791,0.43881253,84.958,84.919,0.49068604]
[1772830020208,0.43881253,84.956,84.919,0.49068604]
[1772830020392,0.43881253,84.949,84.909,0.49068604]
[1772830022398,11.77190751,84.948,84.91,0.46058827]
[1772830022792,12.21072004,84.948,84.91,0.46058827]
[1772830023596,0.43881253,84.947,84.906,0.46058827]
[1772830024806,4.35318559,84.94,84.906,0.46058827]
[1772830025014,0.43881253,84.939,84.906,0.46058827]
[1772830027311,0.43881253,84.937,84.906,0.46058827]
[1772830030536,0.43881253,84.935,84.907,0.46058827]
[1772830030732,11.77357068,84.936,84.907,0.46058827]
[1772830031023,0.43881253,84.935,84.907,0.46058827]
[1772830032327,0.28432314,84.957,84.907,0.46058827]
[1772830032328,0.43881253,84.968,84.907,0.46058827]
[1772830032626,0.43881253,84.966,84.911,0.46058827]
[1772830033632,0.43881253,84.959,84.911,0.46058827]
[1772830035363,0.43881253,85.008,84.914,0.46058827]
[1772830035627,11.76612971,84.99,84.928,0.46058827]
[1772830035833,11.76612971,84.99,84.933,0.14216157]
[1772830035834,0.43881253,84.989,84.933,0.14216157]
[1772830036009,0.43881253,84.989,84.942,0.46058827]
[1772830037325,0.43881253,84.987,84.943,41.20410156]
[1772830037528,0.43881253,84.987,84.944,0.46058827]
[1772830041030,0.28432314,85.007,84.933,0.14216157]
[1772830041031,0.43881253,84.985,84.939,0.46058827]
[1772830041331,0.43881253,84.979,84.939,0.46058827]
[1772830042031,0.43881253,84.969,84.933,0.46058827]
[1772830044335,12.20788013,84.969,84.935,0.46058827]
[1772830044633,0.43881253,84.968,84.935,0.46058827]
[1772830046430,0.43881253,84.968,84.937,0.46058827]
[1772830047432,11.76927513,84.967,84.937,0.46058827]
[1772830047734,0.43881253,84.968,84.937,0.46058827]
[1772830047931,0.43881253,84.982,84.937,0.46058827]
[1772830048931,0.43881253,84.98,84.939,0.46058827]
[1772830051237,0.43881253,84.999,84.941,0.46058827]
[1772830051447,0.43881253,84.999,84.947,0.46058827]
[1772830051614,11.76536822,84.996,84.951,0.46058827]
[1772830051935,0.43881253,84.995,84.951,0.46058827]
[1772830052119,11.76474522,85.0,84.951,0.46058827]
[1772830053627,0.43881253,85.0,84.953,0.46574903]
[1772830056239,0.43881253,85.018,84.961,0.46574903]
[1772830056554,0.43881253,85.018,84.955,0.28432314]
[1772830056555,0.43881253,85.018,84.971,0.46574903]
[1772830058339,0.43881253,85.016,84.973,0.46574903]
[1772830059125,0.43881253,85.009,84.964,0.46574903]
[1772830059335,0.43881253,85.008,84.964,0.46574903]
[1772830060029,0.43881253,84.999,84.964,0.46574903]
[1772830060429,0.43881253,84.997,84.965,11.76955216]
[1772830062543,0.43881253,84.995,84.965,11.76955216]
[1772830065150,0.43881253,84.993,84.965,0.46574903]
[1772830067936,29.40994111,85.006,84.967,0.46574903]
[1772830068257,11.76401388,85.005,84.967,0.46574903]
[1772830069257,11.76354524,85.009,84.969,0.46574903]
[1772830069461,0.43881253,85.008,84.969,0.46574903]
[1772830069933,0.43881253,85.006,84.966,11.76941364]
[1772830070636,0.43881253,85.006,84.966,12.23516267]
[1772830071353,0.43881253,84.999,84.966,0.46574903]
[1772830071570,0.43881253,84.999,84.948,29.42961113]
[1772830071754,0.43881253,84.999,84.96,0.46574903]
[1772830072247,0.43881253,84.997,84.962,0.46574903]
[1772830072450,11.7649827,84.998,84.962,0.46574903]
[1772830072652,0.43881253,85.015,84.962,0.46574903]
[1772830074245,0.43881253,85.008,84.964,0.46574903]
[1772830076564,0.43881253,85.006,84.966,0.49756582]
[1772830078146,0.43881253,84.989,84.955,0.49756582]
[1772830078447,0.43881253,84.987,84.955,0.49756582]
[1772830078744,0.43881253,84.987,84.956,11.770799]
[1772830079159,0.43881253,84.987,84.957,0.49756582]
[1772830080042,0.43881253,84.987,84.941,0.49756582]
[1772830080547,0.43881253,84.985,84.943,0.49756582]
[1772830080748,11.76664391,84.986,84.943,0.49756582]
[1772830081247,0.43881253,84.985,84.943,0.49756582]
[1772830083156,0.43881253,84.979,84.931,0.47810419]
[1772830083342,0.43881253,84.978,84.932,0.47810419]
[1772830083542,0.43881253,84.969,84.932,0.47810419]
[1772830085164,0.43881253,84.967,84.926,0.47810419]
[1772830088572,0.43881253,84.959,84.926,0.47810419]
[1772830088871,0.43881253,84.965,84.927,0.47810419]
[1772830090656,0.43881253,84.963,84.929,0.47810419]
[1772830092152,0.43881253,84.963,84.923,11.77524099]
[1772830092358,4.79289398,84.93,84.895,0.47810419]
[1772830092760,12.21335361,84.929,84.897,0.47810419]
[1772830093368,11.77204609,84.947,84.899,0.47810419]
[1772830093566,11.77204609,84.947,84.901,0.47810419]
[1772830094358,0.43881253,84.946,84.901,0.47810419]
[1772830094979,0.43881253,84.944,84.903,0.47810419]
[1772830095382,11.77232326,84.945,84.903,0.47810419]
[1772830095764,11.77163037,84.95,84.905,0.47810419]
[1772830096062,11.77163037,84.95,84.911,0.47810419]
[1772830097083,0.43881253,84.954,84.913,0.47810419]
[1772830100082,11.77121467,84.953,84.915,0.47810419]
[1772830104787,0.43881253,84.953,84.917,0.47810419]
[1772830112880,0.43881253,84.951,84.919,0.46833476]
[1772830115100,0.43881253,84.949,84.921,0.46833476]
[1772830116099,0.43881253,84.949,84.91,0.46833476]
[1772830117089,12.21072004,84.948,84.912,0.46833476]
[1772830117285,11.77190751,84.948,84.912,0.46833476]
[1772830117498,0.43881253,84.948,84.92,0.46833476]
[1772830117693,11.77139841,84.952,84.922,0.46833476]
[1772830119701,0.43881253,84.953,84.922,0.46833476]
[1772830119894,11.7708088,84.956,84.924,0.46833476]
[1772830121011,0.43881253,84.955,84.924,0.46833476]
[1772830121715,11.7708088,84.956,84.924,0.46833476]
[1772830122588,0.43881253,84.96,84.925,41.21283485]
[1772830122793,12.20916101,84.96,84.926,0.46833476]
[1772830123594,0.43881253,84.959,84.926,0.46833476]
[1772830125408,11.76978965,84.964,84.928,0.46833476]
[1772830125718,12.20860218,84.964,84.928,0.46833476]
[1772830125903,11.76978965,84.964,84.928,0.46833476]
[1772830126216,0.43881253,84.988,84.941,0.14216157]
[1772830126516,0.43881253,84.988,84.942,0.46833476]
[1772830126893,11.76655597,84.987,84.942,0.46833476]
[1772830127817,11.76655597,84.987,84.945,0.46833476]
[1772830128323,11.76591061,84.992,84.951,0.46833476]
[1772830128524,11.76627296,84.989,84.951,0.46833476]
[1772830129424,0.43881253,84.994,84.951,0.46833476]
[1772830129819,0.43881253,84.989,84.951,0.46833476]
[1772830130924,11.76747469,84.98,84.953,0.46833476]
[1772830132128,12.20628722,84.98,84.953,0.46833476]
[1772830132523,0.43881253,84.979,84.953,0.46833476]
[1772830132711,0.43881253,84.979,84.947,11.77196797]
[1772830133022,0.47392854,84.959,84.922,11.77551164]
[1772830134730,0.47392854,84.959,84.923,0.46833476]
[1772830135022,4.35408145,84.96,84.913,0.14216157]
[1772830135023,0.47392854,84.957,84.925,0.46833476]
[1772830135203,0.47392854,84.949,84.893,0.46833476]
[1772830135403,0.47392854,84.949,84.892,11.77967299]
[1772830135404,0.47392854,84.949,84.896,0.14216157]
[1772830135607,0.47392854,84.949,84.901,0.46833476]
[1772830135915,0.48459368,84.939,84.901,0.46833476]
[1772830137106,0.48459368,84.937,84.902,11.77828555]
[1772830137521,0.48459368,84.937,84.903,0.46220641]
[1772830139430,0.48459368,84.937,84.905,0.46220641]
[1772830140534,0.48459368,84.969,84.907,0.46220641]
[1772830140715,0.48459368,84.968,84.911,0.46220641]
[1772830141323,0.48459368,84.966,84.915,0.46220641]
[1772830141516,0.48459368,84.966,84.913,0.28432314]
[1772830141517,0.48459368,84.972,84.922,0.14216157]
[1772830141712,0.48459368,84.972,84.931,0.45735625]
[1772830141913,11.76761317,84.979,84.912,100.1036367]
[1772830141914,11.76761317,84.979,84.941,0.45735625]
[1772830142113,0.46306406,84.982,84.951,0.45735625]
[1772830142622,29.41176755,85.0,84.951,0.45735625]
[1772830142623,0.46306406,84.989,84.951,0.45735625]
[1772830143419,0.46306406,84.996,84.958,0.14216157]
[1772830143733,0.46306406,84.996,84.961,0.45735625]
[1772830144420,0.46306406,84.994,84.963,0.45735625]
[1772830144624,29.40900366,85.008,84.963,0.45735625]
[1772830144625,0.46306406,85.0,84.963,0.45735625]
[1772830146431,4.35408145,85.02,84.972,0.45735625]
[1772830146432,12.22680116,85.007,84.972,0.45735625]
[1772830146734,0.46306406,85.006,84.972,0.45735625]
[1772830147423,0.46306406,85.006,84.965,0.28432314]
[1772830147424,0.46306406,85.006,84.965,0.45735625]
[1772830147931,0.46306406,84.999,84.964,11.76969069]
[1772830148437,0.46306406,84.997,84.96,0.14216157]
[1772830150023,0.46306406,84.997,84.96,0.59951782]
[1772830150224,0.46306406,84.997,84.961,0.45735625]
[1772830150630,0.46306406,84.995,84.962,11.76996775]
[1772830151020,0.46306406,84.995,84.963,0.45735625]
[1772830154445,0.46306406,84.993,84.965,0.45735625]
[1772830155342,11.76490036,84.999,84.965,0.45735625]
[1772830155642,0.46306406,85.004,84.971,0.45735625]
[1772830155943,0.46306406,85.002,84.965,0.45735625]
[1772830156442,0.46306406,85.0,84.967,0.45735625]
[1772830158261,0.46306406,85.0,84.97,0.45735625]
[1772830158447,11.76368762,85.008,84.972,0.45735625]
[1772830159045,11.76095426,85.028,84.976,0.45735625]
[1772830159252,11.76095426,85.028,84.982,0.45735625]
[1772830160357,11.76095426,85.028,84.986,0.14216157]
[1772830160665,11.76095426,85.028,84.991,0.45735625]
[1772830161067,0.1,85.03,84.991,0.45735625]
[1772830161268,11.76069341,85.029,84.991,0.45735625]
[1772830161857,0.1,85.03,84.999,0.45735625]
[1772830162160,0.1,85.03,85.001,0.45735625]
[1772830162547,0.1,85.03,85.003,0.45735625]
[1772830163068,0.56306406,85.03,85.003,0.45735625]
[1772830165067,0.46306406,85.028,84.998,11.76490332]
[1772830165448,0.46306406,85.028,84.985,0.45735625]
[1772830166879,0.46306406,85.026,84.986,12.22400016]
[1772830167259,0.46306406,85.026,84.987,0.45735625]
[1772830167554,0.46306406,85.026,84.989,0.45735625]
[1772830167770,0.46306406,85.026,84.991,0.45735625]
[1772830170674,0.46306406,85.024,84.993,0.45735625]
[1772830172665,0.56046968,85.03,84.996,0.47262692]
[1772830172872,0.1,85.03,85.0,0.47262692]
[1772830173071,0.1,85.03,85.002,0.47262692]
[1772830173967,0.1,85.03,85.004,0.47262692]
[1772830174859,0.56046968,85.03,85.004,0.47262692]
[1772830175566,0.56046968,85.03,84.989,0.47262692]
[1772830175794,0.56046968,85.03,84.99,0.61478849]
[1772830176084,0.46046968,85.028,84.991,0.47262692]
[1772830182785,0.1,85.03,84.991,0.47262692]
[1772830182786,0.46046968,85.026,84.992,11.76581325]
[1772830183766,0.46046968,85.026,84.983,0.47262692]
[1772830184681,0.46046968,85.026,84.989,0.47262692]
[1772830184872,11.76086752,85.028,84.993,0.47262692]
[1772830185260,0.1,85.03,84.993,0.47262692]
[1772830186593,0.1,85.03,85.001,0.47262692]
[1772830186887,12.22116309,85.029,85.003,0.47262692]
[1772830187897,0.46046968,85.029,85.003,0.47262692]
[1772830188768,0.1,85.03,85.003,0.47262692]
[1772830189081,0.56046968,85.03,85.005,0.47262692]
[1772830190196,0.56046968,85.03,84.603,184.38816604]
[1772830190197,0.56046968,85.03,84.999,0.47262692]
[1772830191084,0.46046968,85.029,85.001,0.47262692]
[1772830191295,0.1,85.03,85.001,0.47262692]
[1772830193274,0.1,85.03,84.985,0.28432314]
[1772830193275,0.1,85.03,85.005,0.47262692]
[1772830194291,0.1,85.03,85.01,0.14216157]
[1772830194505,0.56046968,85.03,85.004,0.47262692]
[1772830195178,0.56046968,85.03,85.006,0.47262692]
[1772830197587,0.56046968,85.03,85.008,0.4512674]
[1772830198215,0.49269858,85.029,85.008,0.4512674]
[1772830198683,0.49269858,85.028,85.007,11.7637371]
[1772830198995,0.49269858,85.028,85.006,0.4512674]
[1772830199230,0.49269858,85.028,85.001,11.7644387]
[1772830199598,0.49269858,85.028,85.002,0.4512674]
[1772830200209,0.1,85.04,85.002,0.4512674]
[1772830200512,0.1,85.05,84.997,0.14216157]
[1772830200695,0.1,85.05,85.002,0.4512674]
[1772830201008,45.602094,85.05,85.002,0.4512674]
[1772830201194,4.34969286,85.04,84.995,0.4512674]
[1772830201815,41.15758651,85.039,84.997,0.47471678]
[1772830202205,0.41444871,85.038,84.997,0.47471678]
[1772830202514,29.39527054,85.048,84.997,0.47471678]
[1772830202515,0.41444871,85.047,84.999,0.47471678]
[1772830202684,0.41444871,85.047,85.001,0.47471678]
[1772830203798,0.41444871,85.045,85.003,0.47471678]
[1772830203983,0.41444871,85.039,84.997,11.76503542]
[1772830204415,0.41444871,85.039,84.998,0.47471678]
[1772830204895,0.41444871,85.045,85.001,0.47471678]
[1772830205216,0.41444871,85.039,85.001,0.47471678]
[1772830205794,0.41444871,85.037,85.002,11.76442907]
[1772830205996,0.41444871,85.037,85.003,0.47471678]
[1772830207004,0.41444871,85.037,84.997,12.23981392]
[1772830207204,0.41444871,85.029,84.984,0.47471678]
[1772830207793,0.28432314,85.047,84.986,0.47471678]
[1772830207794,0.41444871,85.027,84.986,0.47471678]
[1772830208914,0.41444871,85.027,84.96,3.69383402]
[1772830208915,0.41444871,85.019,84.979,0.61687835]
[1772830209213,0.41444871,85.019,84.974,11.76830559]
[1772830209214,0.41444871,85.019,84.981,0.47471678]
[1772830209397,0.41444871,85.019,84.975,0.47471678]
[1772830209909,0.41444871,85.019,84.95,14.57313804]
[1772830209910,11.76160957,85.023,84.98,0.14216157]
[1772830210215,11.76160957,85.023,84.981,0.47471678]
[1772830210618,0.41444871,85.048,84.983,0.47471678]
[1772830210823,0.41444871,85.047,84.991,0.47471678]
[1772830212119,0.41444871,85.045,84.993,0.47471678]
[1772830212616,0.41444871,85.045,85.001,0.47471678]
[1772830215792,0.41444871,85.043,85.003,0.47471678]
[1772830216832,0.41444871,85.039,85.003,0.47471678]
[1772830217119,0.41444871,85.028,84.989,0.47471678]
[1772830217293,0.41444871,85.019,84.989,0.47471678]
[1772830217612,0.41444871,85.019,84.983,0.47471678]
[1772830217798,0.41444871,85.017,84.984,0.47471678]
[1772830218413,0.41444871,85.021,84.984,0.47471678]
[1772830218634,0.41444871,85.027,84.984,0.47471678]
[1772830219907,0.41444871,85.025,84.986,0.47471678]
[1772830222131,0.41444871,85.023,84.982,0.47471678]
[1772830222323,0.41444871,85.019,84.982,0.47471678]
[1772830222515,0.41444871,85.019,84.983,0.47471678]
[1772830223616,0.41444871,85.019,84.978,0.47471678]
[1772830225036,0.41444871,85.017,84.98,0.47471678]
[1772830226938,0.41444871,85.015,84.98,0.47471678]
[1772830227122,0.41444871,85.015,84.937,47.09342322]
[1772830227123,0.41444871,84.999,84.965,0.47471678]
[1772830228020,0.41444871,84.999,84.958,0.47471678]
[1772830229134,0.41444871,84.997,84.96,0.47471678]
[1772830231045,0.41444871,85.017,84.962,0.47471678]
[1772830231346,0.69599997,85.035,84.972,0.47471678]
[1772830231347,0.41444871,85.025,84.972,0.47471678]
[1772830231736,0.41444871,85.033,84.972,0.47471678]
[1772830233023,11.76027848,85.032,84.985,0.47366094]
[1772830233240,0.69599997,85.035,84.992,0.14216157]
[1772830233438,0.69599997,85.035,85.003,0.47366094]
[1772830233637,0.41444871,85.033,84.989,0.47366094]
[1772830235852,11.76027848,85.032,84.995,0.47366094]
[1772830236037,11.76027848,85.032,85.003,0.47366094]
[1772830236236,0.69599997,85.035,85.003,0.47366094]
[1772830237154,11.76000188,85.034,85.003,0.47366094]
[1772830237957,11.76000188,85.034,85.005,0.47366094]
[1772830238349,0.69599997,85.035,85.005,0.47366094]
[1772830240739,11.76000188,85.034,85.007,0.47366094]
[1772830241161,0.69599997,85.035,85.007,0.47366094]
[1772830241863,11.76000188,85.034,85.007,0.47366094]
[1772830243166,11.76000188,85.034,85.009,0.47366094]
[1772830243358,0.69599997,85.035,85.009,0.47366094]
[1772830243557,0.1,85.05,85.012,0.47366094]
[1772830244746,0.90593699,85.06,85.026,0.47366094]
[1772830245065,0.90593699,85.06,85.032,0.47366094]
[1772830246367,0.49370039,85.059,85.032,0.47366094]
[1772830246957,0.49370039,85.058,85.033,11.76014018]
[1772830247268,0.49370039,85.056,85.028,11.76076703]
[1772830248377,0.49370039,85.056,85.028,0.47366094]
[1772830249558,12.25071037,85.056,85.03,0.47366094]
[1772830249970,0.49370039,85.055,85.03,0.47366094]
[1772830250280,0.49370039,85.055,85.017,11.76235341]
[1772830250580,0.49370039,85.055,85.018,0.47366094]
[1772830250969,0.49370039,85.055,85.02,0.47366094]
[1772830251175,0.49370039,85.055,85.017,11.76235341]
[1772830251176,0.49370039,85.055,85.022,0.47366094]
[1772830251373,0.49370039,85.055,85.017,41.16823693]
[1772830251374,0.49370039,85.055,85.017,11.76235341]
[1772830251966,0.49370039,85.053,85.017,12.23601435]
[1772830252779,0.49370039,85.053,85.018,0.47366094]
[1772830253276,0.90593699,85.06,85.022,0.47366094]
[1772830253475,12.66245102,85.06,85.022,0.47366094]
[1772830253868,12.66245102,85.06,85.024,0.47366094]
[1772830255171,12.66245102,85.06,85.009,0.14216157]
[1772830255172,0.49370039,85.059,85.02,0.47366094]
[1772830256288,0.48012732,85.057,85.021,12.2502552]
[1772830256789,0.48012732,85.057,85.022,0.48845518]
[1772830258472,0.48012732,85.055,85.023,12.24997853]
[1772830259283,0.48012732,85.055,85.003,0.14216157]
[1772830259284,0.48012732,85.055,85.011,0.48845518]
[1772830259466,0.48012732,85.049,84.975,0.48845518]
[1772830259668,0.48012732,85.048,84.978,0.48845518]
[1772830259878,0.48012732,85.038,84.978,0.48845518]
[1772830260276,0.48012732,85.038,84.982,0.48845518]
[1772830260471,0.48012732,85.036,84.984,0.48845518]
[1772830260677,0.48012732,85.029,84.984,0.48845518]
[1772830262193,0.48012732,85.029,84.988,0.48528533]
[1772830262400,0.48012732,85.029,84.992,0.48528533]
[1772830262695,0.48012732,85.029,84.994,0.48528533]
[1772830263091,29.39579141,85.047,84.983,0.14216157]
[1772830263092,0.47910666,85.027,84.986,0.48528533]
[1772830263292,0.47910666,85.027,84.978,0.48528533]
[1772830263501,0.47910666,85.019,84.978,0.48528533]
[1772830264092,0.47910666,85.009,84.973,13.55042232]
[1772830264617,0.47910666,85.007,84.973,25.31874703]
[1772830264780,0.47910666,85.007,84.974,0.48528533]
[1772830266097,0.47910666,85.014,84.974,0.48528533]
[1772830266685,12.2420135,85.013,84.975,11.7681671]
[1772830267004,0.47910666,85.012,84.976,0.48528533]
[1772830267298,0.47910666,85.009,84.973,25.3188007]
[1772830267703,0.47910666,84.999,84.973,13.55042232]
[1772830269712,0.47910666,84.997,84.973,13.55042232]
[1772830269901,11.76304521,85.012,84.975,0.48528533]
[1772830270199,0.47910666,85.016,84.975,0.48528533]
[1772830270399,11.76245019,85.017,84.975,0.48528533]
[1772830271895,11.76245019,85.017,84.973,13.55042232]
[1772830271896,0.47910666,85.021,84.977,0.48528533]
[1772830275210,11.76193836,85.02,84.979,0.48528533]
[1772830275594,12.24104502,85.02,84.979,0.48528533]
[1772830276508,0.47910666,85.027,84.983,0.48528533]
[1772830277924,0.47910666,85.025,84.985,0.48528533]
[1772830280008,0.47910666,85.023,84.987,0.48528533]
[1772830280801,11.76092209,85.028,84.987,0.48528533]
[1772830281420,0.47910666,85.027,84.987,0.48528533]
[1772830283523,0.47910666,85.033,84.991,0.48528533]
[1772830283704,0.47910666,85.033,84.993,0.48528533]
[1772830284622,0.47910666,85.048,84.995,0.48528533]
[1772830284820,0.47910666,85.048,85.002,0.14216157]
[1772830285006,0.47910666,85.048,85.003,0.48528533]
[1772830285208,29.39327556,85.054,85.003,0.48528533]
[1772830285514,0.90593699,85.06,85.015,0.48528533]
[1772830285704,0.90593699,85.06,85.021,0.48528533]
[1772830285902,11.75654545,85.059,85.023,0.48528533]
[1772830286125,0.47910666,85.058,85.023,0.48528533]
[1772830288004,0.47910666,85.056,85.023,0.48528533]
[1772830288204,0.47910666,85.056,85.012,29.40761304]
[1772830288205,0.47910666,85.056,85.025,0.48528533]
[1772830288521,41.14887662,85.057,85.003,11.76429067]
[1772830288522,0.47910666,85.039,85.003,11.76429067]
[1772830288705,0.47910666,85.028,84.987,0.48528533]
[1772830288905,0.28432314,85.029,84.979,0.48528533]
[1772830288906,0.47910666,85.018,84.979,0.48528533]
[1772830290210,0.28432314,85.029,84.981,0.48528533]
[1772830290417,0.47910666,85.027,84.981,0.48528533]
[1772830292525,0.47717857,85.025,84.983,0.4851875]
[1772830294431,11.76110836,85.026,84.985,0.4851875]
[1772830294632,0.47717857,85.032,84.989,0.4851875]
[1772830294930,0.47717857,85.032,84.993,0.4851875]
[1772830296011,29.39624071,85.045,84.993,0.4851875]
[1772830296012,0.47717857,85.03,84.993,0.4851875]
[1772830296614,12.23787198,85.029,84.995,0.4851875]
[1772830296913,0.47717857,85.028,84.995,0.4851875]
[1772830298519,0.47717857,85.019,84.98,0.4851875]
[1772830298718,0.47717857,85.017,84.981,0.4851875]
[1772830299030,0.47717857,85.032,84.983,0.4851875]
[1772830300141,11.76041678,85.031,84.983,0.4851875]
[1772830300339,0.47717857,85.03,84.983,0.4851875]
[1772830301047,0.47717857,85.028,84.993,0.4851875]
[1772830301252,0.47717857,85.035,84.993,0.4851875]
[1772830303149,0.47717857,85.033,84.995,0.4851875]
[1772830305458,0.47717857,85.033,84.983,0.14216157]
[1772830305459,12.23745705,85.032,84.997,0.4851875]
[1772830306463,0.47717857,85.031,84.997,0.4851875]
[1772830308157,0.47717857,85.031,84.999,0.4851875]
[1772830308940,0.47717857,85.029,84.999,0.4851875]
[1772830310269,0.47717857,85.027,85.0,11.76470588]
[1772830310555,0.47717857,85.027,85.001,0.4851875]
[1772830311455,0.7073,85.032,85.001,0.4851875]
[1772830312235,1.18447857,85.032,85.002,41.17550175]
[1772830312554,0.7073,85.032,85.003,0.4851875]
[1772830314359,0.7073,85.032,85.005,0.4851875]
[1772830314657,1.18447857,85.032,85.005,0.4851875]
[1772830315152,0.47717857,85.03,85.004,11.76415227]
[1772830316041,0.47717857,85.03,85.004,12.2562112]
[1772830316241,0.47717857,85.03,85.004,11.76415227]
[1772830316550,0.47717857,85.03,85.007,0.49205893]
[1772830319156,0.47070176,85.028,84.991,0.49205893]
[1772830320757,12.23111854,85.031,84.991,0.49205893]
[1772830320959,0.47070176,85.03,84.991,0.49205893]
[1772830321455,0.7073,85.032,84.993,0.49205893]
[1772830323252,0.49999301,85.031,84.993,0.49205893]
[1772830323444,0.49999301,85.042,85.007,0.45239445]
[1772830323645,0.49999301,85.04,85.013,0.45239445]
[1772830324248,0.49999301,85.04,84.996,0.45239445]
[1772830325969,0.49999301,85.038,84.998,0.45239445]
[1772830328757,0.49999301,85.036,85.0,0.45239445]
[1772830329184,0.49999301,85.036,84.999,11.76484429]
[1772830329355,0.49999301,85.036,84.999,12.21723874]
[1772830329656,0.28432314,85.029,84.988,11.76636701]
[1772830329865,0.49999301,85.028,84.988,12.21876146]
[1772830330061,0.49999301,85.028,84.989,0.45239445]
[1772830330265,0.49999301,85.028,84.98,0.45239445]
[1772830331154,0.49999301,85.026,84.982,0.45239445]
[1772830333258,0.49999301,85.024,84.984,0.45239445]
[1772830334672,0.49999301,85.037,84.984,0.45239445]
[1772830335079,0.49999301,85.037,84.988,0.45239445]
[1772830335368,5.25295816,85.06,84.998,0.14216157]
[1772830335369,0.49999301,85.058,84.998,0.14216157]
[1772830335548,0.49999301,85.058,85.003,0.45239445]
[1772830335750,0.90593699,85.06,85.015,0.45239445]
[1772830335975,0.90593699,85.06,85.023,0.45239445]
[1772830338071,0.49999301,85.059,85.025,0.45239445]
[1772830340374,0.49999301,85.057,85.026,11.76110836]
[1772830340576,0.49999301,85.057,85.021,11.76179137]
[1772830341665,0.49999301,85.057,85.007,0.45239445]
[1772830342365,0.49999301,85.055,85.009,0.45239445]
[1772830342560,0.49999301,85.055,85.011,0.45239445]
[1772830343378,0.49999301,85.055,85.013,0.45239445]
[1772830344577,0.49999301,85.053,85.015,0.45239445]
[1772830345572,0.49999301,85.053,85.014,11.76276848]
[1772830346180,0.49999301,85.053,85.014,12.21516293]
[1772830346556,0.49999301,85.049,85.009,0.45239445]
[1772830348857,0.49999301,85.047,85.011,0.45239445]
[1772830350486,0.49999301,85.038,84.999,0.45239445]
[1772830350666,0.49999301,85.038,85.002,11.76436578]
[1772830350867,41.1585545,85.037,85.002,11.76436578]
[1772830351080,0.49999301,85.036,85.002,11.76436578]